[Event "Titled Tuesday Blitz June 13 Late 2023"]
[White "Toniutti, Ezio"]
[Black "Korpics, Zsolt"]
[WhiteFideId "113034"]
[BlackFideId "705241"]
[WhiteElo "2215"]
[BlackElo "2325"]
[Result "0-1"]
[Round "5"]
[TimeControl "180+2"]
[Date "2023.06.13"]
[WhiteClock "0:00:00"]
[BlackClock "0:00:19"]
[Board "138"]

1. d4 {[%clk 0:03:00]}  Nf6 {[%clk 0:02:58]} 2. c4 {[%clk 0:03:01]}  e6 {[%clk 0:02:59]} 3. g3 {[%clk 0:03:00]}  d5 {[%clk 0:02:57]} 4. Nf3 {[%clk 0:03:00]}  Bb4+ {[%clk 0:02:56]} 5. Bd2 {[%clk 0:03:00]}  Be7 {[%clk 0:02:56]} 6. Bg2 {[%clk 0:03:00]}  O-O {[%clk 0:02:56]} 7. O-O {[%clk 0:03:01]}  c6 {[%clk 0:02:54]} 8. Qb3 {[%clk 0:03:00]}  Nbd7 {[%clk 0:02:52]} 9. Bb4 {[%clk 0:03:00]}  b6 {[%clk 0:02:30]} 10. Nbd2 {[%clk 0:02:58]}  c5 {[%clk 0:02:22]} 11. Bc3 {[%clk 0:02:52]}  Bb7 {[%clk 0:02:17]} 12. Rfd1 {[%clk 0:02:51]}  Qc7 {[%clk 0:02:12]} 13. Rac1 {[%clk 0:02:48]}  Rac8 {[%clk 0:02:06]} 14. cxd5 {[%clk 0:02:44]}  Bxd5 {[%clk 0:02:04]} 15. Qa4 {[%clk 0:02:35]}  Qb7 {[%clk 0:02:04]} 16. dxc5 {[%clk 0:02:21]}  Nxc5 {[%clk 0:01:58]} 17. Qh4 {[%clk 0:01:37]}  Nfe4 {[%clk 0:01:52]} 18. Qg4 {[%clk 0:01:32]}  Nxc3 {[%clk 0:01:45]} 19. Rxc3 {[%clk 0:01:27]}  f5 {[%clk 0:01:33]} 20. Qh5 {[%clk 0:01:18]}  Bf6 {[%clk 0:01:32]} 21. Rc2 {[%clk 0:01:13]}  g6 {[%clk 0:01:08]} 22. Qh6 {[%clk 0:01:05]}  e5 {[%clk 0:01:08]} 23. Rdc1 {[%clk 0:00:51]}  Bg7 {[%clk 0:00:48]} 24. Qh4 {[%clk 0:00:50]}  Bf6 {[%clk 0:00:43]} 25. Qh3 {[%clk 0:00:48]}  Ne4 {[%clk 0:00:38]} 26. Nc4 {[%clk 0:00:29]}  Bxc4 {[%clk 0:00:31]} 27. Rxc4 {[%clk 0:00:27]}  Rxc4 {[%clk 0:00:31]} 28. Rxc4 {[%clk 0:00:27]}  Rc8 {[%clk 0:00:32]} 29. Rxc8+ {[%clk 0:00:25]}  Qxc8 {[%clk 0:00:33]} 30. Qh6 {[%clk 0:00:21]}  Qc5 {[%clk 0:00:27]} 31. e3 {[%clk 0:00:19]}  Qc1+ {[%clk 0:00:20]} 32. Bf1 {[%clk 0:00:16]}  Qc2 {[%clk 0:00:21]} 33. Bg2 {[%clk 0:00:05]}  Qxf2+ {[%clk 0:00:20]} 34. Kh1 {[%clk 0:00:05]}  Qxe3 {[%clk 0:00:20]} 35. h4 {[%clk 0:00:00]}  Qxh6 {[%clk 0:00:19]} 0-1


[Site "https://www.chess.com"]

[Event "Titled Tuesday Blitz June 13 Late 2023"]
[White "Ardila, Oscar Humberto"]
[Black "Jakic, Ivan"]
[WhiteFideId "4404742"]
[BlackFideId "14504901"]
[WhiteElo "1912"]
[BlackElo "2365"]
[Result "1/2-1/2"]
[Round "5"]
[TimeControl "180+2"]
[Date "2023.06.13"]
[WhiteClock "0:00:14"]
[BlackClock "0:00:06"]
[Board "139"]

1. d4 {[%clk 0:02:59]}  Nf6 {[%clk 0:02:59]} 2. c4 {[%clk 0:02:59]}  Nc6 {[%clk 0:02:59]} 3. Nf3 {[%clk 0:02:57]}  e6 {[%clk 0:03:00]} 4. Nc3 {[%clk 0:02:55]}  Bb4 {[%clk 0:03:00]} 5. Bd2 {[%clk 0:02:54]}  d6 {[%clk 0:03:00]} 6. e3 {[%clk 0:02:53]}  O-O {[%clk 0:03:00]} 7. a3 {[%clk 0:02:51]}  Bxc3 {[%clk 0:03:00]} 8. Bxc3 {[%clk 0:02:51]}  Qe7 {[%clk 0:03:01]} 9. Be2 {[%clk 0:02:50]}  e5 {[%clk 0:03:01]} 10. d5 {[%clk 0:02:51]}  Nb8 {[%clk 0:03:01]} 11. O-O {[%clk 0:02:50]}  a5 {[%clk 0:03:01]} 12. b4 {[%clk 0:02:49]}  axb4 {[%clk 0:03:01]} 13. axb4 {[%clk 0:02:49]}  Rxa1 {[%clk 0:03:02]} 14. Qxa1 {[%clk 0:02:49]}  b5 {[%clk 0:03:01]} 15. Qa7 {[%clk 0:02:43]}  Bg4 {[%clk 0:02:54]} 16. h3 {[%clk 0:02:36]}  Bxf3 {[%clk 0:02:51]} 17. Bxf3 {[%clk 0:02:36]}  bxc4 {[%clk 0:02:51]} 18. e4 {[%clk 0:02:32]}  Qd7 {[%clk 0:02:34]} 19. Ra1 {[%clk 0:02:23]}  Rc8 {[%clk 0:02:18]} 20. Qb7 {[%clk 0:02:22]}  c6 {[%clk 0:02:16]} 21. dxc6 {[%clk 0:02:06]}  Qxc6 {[%clk 0:02:11]} 22. Qxc6 {[%clk 0:01:52]}  Nxc6 {[%clk 0:02:10]} 23. b5 {[%clk 0:01:52]}  Nd4 {[%clk 0:02:10]} 24. b6 {[%clk 0:01:52]}  Kf8 {[%clk 0:01:44]} 25. b7 {[%clk 0:01:52]}  Rb8 {[%clk 0:01:43]} 26. Ra8 {[%clk 0:01:52]}  Nxf3+ {[%clk 0:01:29]} 27. gxf3 {[%clk 0:01:50]}  Nd7 {[%clk 0:01:29]} 28. Bb4 {[%clk 0:01:47]}  Ke7 {[%clk 0:01:29]} 29. Ra6 {[%clk 0:01:43]}  Rxb7 {[%clk 0:00:40]} 30. Bxd6+ {[%clk 0:01:42]}  Kf6 {[%clk 0:00:41]} 31. Bc5+ {[%clk 0:01:28]}  Kg5 {[%clk 0:00:39]} 32. Be3+ {[%clk 0:01:28]}  Kh5 {[%clk 0:00:40]} 33. Rc6 {[%clk 0:01:25]}  Nf6 {[%clk 0:00:25]} 34. Rxc4 {[%clk 0:01:23]}  Re7 {[%clk 0:00:22]} 35. Kg2 {[%clk 0:01:21]}  Kg6 {[%clk 0:00:22]} 36. Rc6 {[%clk 0:01:18]}  h6 {[%clk 0:00:21]} 37. Bc5 {[%clk 0:01:12]}  Re6 {[%clk 0:00:17]} 38. Rc7 {[%clk 0:01:11]}  Nh5 {[%clk 0:00:17]} 39. Be3 {[%clk 0:01:11]}  f6 {[%clk 0:00:17]} 40. Rd7 {[%clk 0:01:07]}  Rc6 {[%clk 0:00:17]} 41. Ra7 {[%clk 0:01:06]}  Rc2 {[%clk 0:00:16]} 42. Rb7 {[%clk 0:01:04]}  Kh7 {[%clk 0:00:15]} 43. Ra7 {[%clk 0:01:04]}  Kg8 {[%clk 0:00:15]} 44. Rb7 {[%clk 0:01:03]}  g5 {[%clk 0:00:14]} 45. Re7 {[%clk 0:01:00]}  Ng7 {[%clk 0:00:12]} 46. Bb6 {[%clk 0:00:49]}  Nh5 {[%clk 0:00:09]} 47. Be3 {[%clk 0:00:48]}  Rc6 {[%clk 0:00:08]} 48. Ra7 {[%clk 0:00:47]}  Ng7 {[%clk 0:00:08]} 49. Re7 {[%clk 0:00:46]}  Re6 {[%clk 0:00:08]} 50. Ra7 {[%clk 0:00:46]}  Kh7 {[%clk 0:00:08]} 51. Bc5 {[%clk 0:00:45]}  Kg6 {[%clk 0:00:09]} 52. Be3 {[%clk 0:00:40]}  Nh5 {[%clk 0:00:08]} 53. Rb7 {[%clk 0:00:40]}  f5 {[%clk 0:00:08]} 54. Rb8 {[%clk 0:00:27]}  Rf6 {[%clk 0:00:07]} 55. Rg8+ {[%clk 0:00:23]}  Ng7 {[%clk 0:00:07]} 56. exf5+ {[%clk 0:00:18]}  Rxf5 {[%clk 0:00:08]} 57. Bc5 {[%clk 0:00:17]}  Kf7 {[%clk 0:00:07]} 58. Rh8 {[%clk 0:00:16]}  Ne6 {[%clk 0:00:07]} 59. Be3 {[%clk 0:00:15]}  Kg7 {[%clk 0:00:07]} 60. Re8 {[%clk 0:00:14]}  Rf6 {[%clk 0:00:07]} 61. Re7+ {[%clk 0:00:14]}  Kg6 {[%clk 0:00:07]} 62. Re8 {[%clk 0:00:14]}  Nf4+ {[%clk 0:00:07]} 63. Bxf4 {[%clk 0:00:14]}  exf4 {[%clk 0:00:08]} 64. Re7 {[%clk 0:00:14]}  Rd6 {[%clk 0:00:08]} 65. Re8 {[%clk 0:00:14]}  Rf6 {[%clk 0:00:09]} 66. Re7 {[%clk 0:00:14]}  Kf5 {[%clk 0:00:09]} 67. Re8 {[%clk 0:00:14]}  h5 {[%clk 0:00:09]} 68. Rb8 {[%clk 0:00:14]}  Re6 {[%clk 0:00:09]} 69. Rf8+ {[%clk 0:00:14]}  Rf6 {[%clk 0:00:09]} 70. Rh8 {[%clk 0:00:14]}  Kg6 {[%clk 0:00:10]} 71. Rg8+ {[%clk 0:00:14]}  Kh6 {[%clk 0:00:10]} 72. Rh8+ {[%clk 0:00:14]}  Kg6 {[%clk 0:00:08]} 73. Rg8+ {[%clk 0:00:14]}  Kf5 {[%clk 0:00:08]} 74. Rh8 {[%clk 0:00:14]}  Kg6 {[%clk 0:00:06]} 1/2-1/2


[Site "https://www.chess.com"]

[Event "Titled Tuesday Blitz June 13 Late 2023"]
[White "Kovalevsky, Stanislav"]
[Black "Vila Dupla, Aurelio"]
[WhiteFideId "13508598"]
[BlackFideId "2203383"]
[WhiteElo "2112"]
[BlackElo "2009"]
[Result "0-1"]
[Round "5"]
[TimeControl "180+2"]
[Date "2023.06.13"]
[WhiteClock "0:00:04"]
[BlackClock "0:00:27"]
[Board "144"]

1. c4 {[%clk 0:02:42]}  Nf6 {[%clk 0:02:57]} 2. Nc3 {[%clk 0:02:42]}  d5 {[%clk 0:02:57]} 3. cxd5 {[%clk 0:02:42]}  Nxd5 {[%clk 0:02:57]} 4. e4 {[%clk 0:02:41]}  Nxc3 {[%clk 0:02:56]} 5. bxc3 {[%clk 0:02:42]}  c5 {[%clk 0:02:55]} 6. Nf3 {[%clk 0:02:42]}  g6 {[%clk 0:02:55]} 7. d4 {[%clk 0:02:42]}  Bg7 {[%clk 0:02:54]} 8. Be3 {[%clk 0:02:42]}  Qa5 {[%clk 0:02:52]} 9. Qd2 {[%clk 0:02:38]}  O-O {[%clk 0:02:51]} 10. Bc4 {[%clk 0:02:34]}  Nc6 {[%clk 0:02:48]} 11. Rd1 {[%clk 0:02:18]}  Rd8 {[%clk 0:02:44]} 12. O-O {[%clk 0:02:12]}  Bg4 {[%clk 0:02:41]} 13. d5 {[%clk 0:01:52]}  Ne5 {[%clk 0:02:17]} 14. Be2 {[%clk 0:01:26]}  Nxf3+ {[%clk 0:02:16]} 15. gxf3 {[%clk 0:01:26]}  Bh3 {[%clk 0:02:16]} 16. c4 {[%clk 0:01:22]}  Qxd2 {[%clk 0:02:12]} 17. Rxd2 {[%clk 0:01:20]}  Bxf1 {[%clk 0:02:12]} 18. Bxf1 {[%clk 0:01:21]}  b6 {[%clk 0:02:11]} 19. f4 {[%clk 0:01:20]}  Bh6 {[%clk 0:02:00]} 20. e5 {[%clk 0:01:16]}  f6 {[%clk 0:01:45]} 21. Bh3 {[%clk 0:00:51]}  fxe5 {[%clk 0:01:39]} 22. fxe5 {[%clk 0:00:52]}  Bxe3 {[%clk 0:01:38]} 23. fxe3 {[%clk 0:00:53]}  a6 {[%clk 0:01:25]} 24. e4 {[%clk 0:00:37]}  b5 {[%clk 0:01:24]} 25. d6 {[%clk 0:00:36]}  Kf7 {[%clk 0:00:58]} 26. Rf2+ {[%clk 0:00:24]}  Kg7 {[%clk 0:00:58]} 27. d7 {[%clk 0:00:12]}  b4 {[%clk 0:00:45]} 28. e6 {[%clk 0:00:10]}  Rf8 {[%clk 0:00:45]} 29. Rd2 {[%clk 0:00:08]}  a5 {[%clk 0:00:42]} 30. Rd5 {[%clk 0:00:08]}  a4 {[%clk 0:00:36]} 31. Rxc5 {[%clk 0:00:04]}  b3 {[%clk 0:00:36]} 32. axb3 {[%clk 0:00:04]}  a3 {[%clk 0:00:35]} 33. Rc8 {[%clk 0:00:04]}  a2 {[%clk 0:00:34]} 34. Re8 {[%clk 0:00:04]}  a1=Q+ {[%clk 0:00:32]} 35. Kg2 {[%clk 0:00:04]}  Qb2+ {[%clk 0:00:32]} 36. Kg3 {[%clk 0:00:05]}  Qxb3+ {[%clk 0:00:31]} 37. Kh4 {[%clk 0:00:04]}  Raxe8 {[%clk 0:00:27]} 0-1


[Site "https://www.chess.com"]

[Event "Titled Tuesday Blitz June 13 Late 2023"]
[White "SicilianPanzer"]
[Black "KorolDimitriy75"]
[WhiteElo "2242"]
[BlackElo "2417"]
[Result "1/2-1/2"]
[Round "5"]
[TimeControl "180+2"]
[Date "2023.06.13"]
[WhiteClock "0:00:04"]
[BlackClock "0:00:32"]
[Board "146"]

1. e4 {[%clk 0:03:00]}  c5 {[%clk 0:03:00]} 2. Nf3 {[%clk 0:02:59]}  d6 {[%clk 0:03:00]} 3. c3 {[%clk 0:02:59]}  Nf6 {[%clk 0:03:00]} 4. h3 {[%clk 0:02:58]}  g6 {[%clk 0:03:00]} 5. Bd3 {[%clk 0:02:57]}  Bg7 {[%clk 0:03:00]} 6. Bc2 {[%clk 0:02:58]}  e5 {[%clk 0:02:58]} 7. d4 {[%clk 0:02:57]}  exd4 {[%clk 0:02:57]} 8. cxd4 {[%clk 0:02:56]}  cxd4 {[%clk 0:02:58]} 9. Nxd4 {[%clk 0:02:56]}  O-O {[%clk 0:02:57]} 10. O-O {[%clk 0:02:55]}  Nc6 {[%clk 0:02:57]} 11. Nc3 {[%clk 0:02:42]}  Nxd4 {[%clk 0:02:56]} 12. Qxd4 {[%clk 0:02:41]}  Be6 {[%clk 0:02:56]} 13. Bg5 {[%clk 0:02:01]}  h6 {[%clk 0:02:53]} 14. Bh4 {[%clk 0:02:00]}  g5 {[%clk 0:02:53]} 15. Bg3 {[%clk 0:01:59]}  Nd5 {[%clk 0:02:51]} 16. Qd3 {[%clk 0:01:19]}  Nxc3 {[%clk 0:02:50]} 17. e5 {[%clk 0:01:09]}  Ne2+ {[%clk 0:01:34]} 18. Qxe2 {[%clk 0:00:59]}  dxe5 {[%clk 0:01:33]} 19. Bxe5 {[%clk 0:00:58]}  Re8 {[%clk 0:01:23]} 20. Rad1 {[%clk 0:00:12]}  Qa5 {[%clk 0:01:06]} 21. Bxg7 {[%clk 0:00:10]}  Kxg7 {[%clk 0:01:06]} 22. Qd3 {[%clk 0:00:09]}  Rh8 {[%clk 0:00:59]} 23. a3 {[%clk 0:00:08]}  Rad8 {[%clk 0:00:58]} 24. Qf3 {[%clk 0:00:08]}  Qb6 {[%clk 0:00:54]} 25. b4 {[%clk 0:00:07]}  Rxd1 {[%clk 0:00:51]} 26. Rxd1 {[%clk 0:00:08]}  Rd8 {[%clk 0:00:51]} 27. Qc3+ {[%clk 0:00:08]}  Kg8 {[%clk 0:00:49]} 28. Qf6 {[%clk 0:00:05]}  Rxd1+ {[%clk 0:00:48]} 29. Bxd1 {[%clk 0:00:06]}  Qd6 {[%clk 0:00:42]} 30. Bg4 {[%clk 0:00:04]}  Qd5 {[%clk 0:00:37]} 31. Qxh6 {[%clk 0:00:03]}  Bxg4 {[%clk 0:00:36]} 32. hxg4 {[%clk 0:00:04]}  Qd1+ {[%clk 0:00:37]} 33. Kh2 {[%clk 0:00:04]}  Qxg4 {[%clk 0:00:37]} 34. Qf6 {[%clk 0:00:02]}  Qh4+ {[%clk 0:00:34]} 35. Kg1 {[%clk 0:00:02]}  Qg4 {[%clk 0:00:33]} 36. Qd8+ {[%clk 0:00:02]}  Kg7 {[%clk 0:00:32]} 37. Qb8 {[%clk 0:00:02]}  Qd1+ {[%clk 0:00:31]} 38. Kh2 {[%clk 0:00:02]}  Qh5+ {[%clk 0:00:31]} 39. Kg1 {[%clk 0:00:03]}  Qd1+ {[%clk 0:00:32]} 40. Kh2 {[%clk 0:00:03]}  Qd5 {[%clk 0:00:31]} 41. Qxa7 {[%clk 0:00:02]}  Qe5+ {[%clk 0:00:32]} 42. Kg1 {[%clk 0:00:03]}  Qe1+ {[%clk 0:00:31]} 43. Kh2 {[%clk 0:00:04]}  Qe5+ {[%clk 0:00:31]} 44. Kg1 {[%clk 0:00:04]}  Qe1+ {[%clk 0:00:31]} 45. Kh2 {[%clk 0:00:04]}  Qe5+ {[%clk 0:00:32]} 1/2-1/2


[Site "https://www.chess.com"]

[Event "Titled Tuesday Blitz June 13 Late 2023"]
[White "Myers, Dominique"]
[Black "Sariego Figueredo, Wilfredo"]
[WhiteFideId "2041715"]
[BlackFideId "3500080"]
[WhiteElo "1951"]
[BlackElo "2309"]
[Result "1-0"]
[Round "5"]
[TimeControl "180+2"]
[Date "2023.06.13"]
[WhiteClock "0:01:03"]
[BlackClock "0:00:03"]
[Board "150"]

1. e4 {[%clk 0:02:58]}  c5 {[%clk 0:03:00]} 2. Nf3 {[%clk 0:02:58]}  a6 {[%clk 0:03:00]} 3. c4 {[%clk 0:02:56]}  Nc6 {[%clk 0:03:00]} 4. d4 {[%clk 0:02:55]}  cxd4 {[%clk 0:03:01]} 5. Nxd4 {[%clk 0:02:56]}  e5 {[%clk 0:03:01]} 6. Nc2 {[%clk 0:02:56]}  Bc5 {[%clk 0:02:59]} 7. Be2 {[%clk 0:02:55]}  Nf6 {[%clk 0:02:58]} 8. Nc3 {[%clk 0:02:55]}  d6 {[%clk 0:02:48]} 9. O-O {[%clk 0:02:53]}  O-O {[%clk 0:02:48]} 10. a3 {[%clk 0:02:51]}  h6 {[%clk 0:02:47]} 11. b4 {[%clk 0:02:51]}  Ba7 {[%clk 0:02:47]} 12. Be3 {[%clk 0:02:50]}  Bxe3 {[%clk 0:02:45]} 13. Nxe3 {[%clk 0:02:51]}  Nd4 {[%clk 0:02:44]} 14. h3 {[%clk 0:02:48]}  Be6 {[%clk 0:02:39]} 15. Rc1 {[%clk 0:02:47]}  Rc8 {[%clk 0:02:36]} 16. Bd3 {[%clk 0:02:45]}  Qd7 {[%clk 0:02:27]} 17. Ncd5 {[%clk 0:02:39]}  Bxd5 {[%clk 0:02:24]} 18. exd5 {[%clk 0:02:35]}  b6 {[%clk 0:02:11]} 19. Bb1 {[%clk 0:02:34]}  Rc7 {[%clk 0:02:01]} 20. f4 {[%clk 0:02:33]}  a5 {[%clk 0:01:36]} 21. Qd3 {[%clk 0:02:30]}  axb4 {[%clk 0:01:25]} 22. axb4 {[%clk 0:02:31]}  Rfc8 {[%clk 0:01:13]} 23. fxe5 {[%clk 0:02:31]}  dxe5 {[%clk 0:01:13]} 24. Rxf6 {[%clk 0:02:28]}  gxf6 {[%clk 0:01:13]} 25. Qh7+ {[%clk 0:02:26]}  Kf8 {[%clk 0:01:14]} 26. Qxh6+ {[%clk 0:02:22]}  Ke7 {[%clk 0:01:11]} 27. Rf1 {[%clk 0:02:20]}  Qd6 {[%clk 0:01:04]} 28. Ng4 {[%clk 0:02:16]}  Ne2+ {[%clk 0:00:57]} 29. Kf2 {[%clk 0:02:06]}  Nf4 {[%clk 0:00:47]} 30. Re1 {[%clk 0:02:01]}  Rxc4 {[%clk 0:00:33]} 31. Bf5 {[%clk 0:01:46]}  Rxb4 {[%clk 0:00:27]} 32. Bxc8 {[%clk 0:01:44]}  Rb2+ {[%clk 0:00:27]} 33. Kf1 {[%clk 0:01:43]}  Rxg2 {[%clk 0:00:20]} 34. Qxf4 {[%clk 0:01:42]}  Rxg4 {[%clk 0:00:12]} 35. Bxg4 {[%clk 0:01:41]}  Qxd5 {[%clk 0:00:10]} 36. Qb4+ {[%clk 0:01:39]}  Ke8 {[%clk 0:00:08]} 37. Qa4+ {[%clk 0:01:35]}  b5 {[%clk 0:00:07]} 38. Qa7 {[%clk 0:01:32]}  Qc4+ {[%clk 0:00:07]} 39. Kg2 {[%clk 0:01:30]}  Qc2+ {[%clk 0:00:06]} 40. Re2 {[%clk 0:01:30]}  Qc6+ {[%clk 0:00:06]} 41. Bf3 {[%clk 0:01:29]}  Qc4 {[%clk 0:00:05]} 42. Qb8+ {[%clk 0:01:25]}  Ke7 {[%clk 0:00:05]} 43. Re4 {[%clk 0:01:21]}  Qc2+ {[%clk 0:00:05]} 44. Kg3 {[%clk 0:01:20]}  Qc1 {[%clk 0:00:03]} 45. Qxb5 {[%clk 0:01:16]}  Qg5+ {[%clk 0:00:02]} 46. Bg4 {[%clk 0:01:17]}  Qd2 {[%clk 0:00:02]} 47. Qc5+ {[%clk 0:01:15]}  Ke8 {[%clk 0:00:02]} 48. Qc8+ {[%clk 0:01:12]}  Ke7 {[%clk 0:00:01]} 49. Qc5+ {[%clk 0:01:09]}  Ke8 {[%clk 0:00:01]} 50. Be2 {[%clk 0:01:06]}  Qg5+ {[%clk 0:00:01]} 51. Rg4 {[%clk 0:01:06]}  Qe3+ {[%clk 0:00:01]} 52. Qxe3 {[%clk 0:01:06]}  Ke7 {[%clk 0:00:02]} 53. Qc5+ {[%clk 0:01:05]}  Ke6 {[%clk 0:00:02]} 54. Bc4+ {[%clk 0:01:05]}  Kf5 {[%clk 0:00:03]} 55. Qc8# {[%clk 0:01:03]} 1-0


[Site "https://www.chess.com"]

[Event "Titled Tuesday Blitz June 13 Late 2023"]
[White "Abduzhaparov"]
[Black "Djordjevic, Dejan N"]
[BlackFideId "913316"]
[WhiteElo "2399"]
[BlackElo "2261"]
[Result "1-0"]
[Round "5"]
[TimeControl "180+2"]
[Date "2023.06.13"]
[WhiteClock "0:01:34"]
[BlackClock "0:00:49"]
[Board "151"]

1. Nf3 {[%clk 0:03:00]}  Nf6 {[%clk 0:02:55]} 2. c4 {[%clk 0:03:01]}  g6 {[%clk 0:02:54]} 3. Nc3 {[%clk 0:03:01]}  d6 {[%clk 0:02:54]} 4. e4 {[%clk 0:03:01]}  Bg7 {[%clk 0:02:55]} 5. d4 {[%clk 0:03:02]}  O-O {[%clk 0:02:55]} 6. Be3 {[%clk 0:03:02]}  Nc6 {[%clk 0:02:56]} 7. Be2 {[%clk 0:03:02]}  e5 {[%clk 0:02:55]} 8. d5 {[%clk 0:03:02]}  Ne7 {[%clk 0:02:55]} 9. Nd2 {[%clk 0:03:03]}  Ne8 {[%clk 0:02:55]} 10. g4 {[%clk 0:03:03]}  f5 {[%clk 0:02:54]} 11. gxf5 {[%clk 0:02:50]}  gxf5 {[%clk 0:02:54]} 12. exf5 {[%clk 0:02:51]}  Nxf5 {[%clk 0:02:50]} 13. Nde4 {[%clk 0:02:44]}  Nxe3 {[%clk 0:02:49]} 14. fxe3 {[%clk 0:02:45]}  Qh4+ {[%clk 0:02:48]} 15. Kd2 {[%clk 0:02:45]}  Bh6 {[%clk 0:02:42]} 16. Qg1+ {[%clk 0:02:44]}  Kh8 {[%clk 0:02:42]} 17. Qg3 {[%clk 0:02:43]}  Qe7 {[%clk 0:02:29]} 18. Rhg1 {[%clk 0:02:37]}  c5 {[%clk 0:02:25]} 19. Raf1 {[%clk 0:02:33]}  Bf5 {[%clk 0:02:24]} 20. Rxf5 {[%clk 0:02:31]}  Ng7 {[%clk 0:02:16]} 21. Rxf8+ {[%clk 0:02:27]}  Rxf8 {[%clk 0:02:15]} 22. Qh3 {[%clk 0:02:19]}  Nf5 {[%clk 0:02:13]} 23. Bg4 {[%clk 0:02:05]}  Bxe3+ {[%clk 0:02:10]} 24. Kd3 {[%clk 0:02:05]}  Bxg1 {[%clk 0:02:05]} 25. Bxf5 {[%clk 0:02:05]}  Rd8 {[%clk 0:01:49]} 26. Ng5 {[%clk 0:02:00]}  Rg8 {[%clk 0:01:30]} 27. Nxh7 {[%clk 0:01:49]}  Bf2 {[%clk 0:00:52]} 28. Nf6+ {[%clk 0:01:39]}  Kg7 {[%clk 0:00:49]} 29. Qh7+ {[%clk 0:01:35]}  Kxf6 {[%clk 0:00:49]} 30. Ne4# {[%clk 0:01:34]} 1-0


[Site "https://www.chess.com"]

[Event "Titled Tuesday Blitz June 13 Late 2023"]
[White "zano2023"]
[Black "Prieto Aranguren, Alain"]
[BlackFideId "2268906"]
[WhiteElo "2092"]
[BlackElo "2209"]
[Result "1-0"]
[Round "5"]
[TimeControl "180+2"]
[Date "2023.06.13"]
[WhiteClock "0:00:46"]
[BlackClock "0:00:16"]
[Board "155"]

1. d4 {[%clk 0:03:00]}  d6 {[%clk 0:03:00]} 2. Nf3 {[%clk 0:02:59]}  g6 {[%clk 0:03:01]} 3. Nbd2 {[%clk 0:02:59]}  Bg7 {[%clk 0:03:01]} 4. e4 {[%clk 0:02:59]}  Nc6 {[%clk 0:03:00]} 5. c3 {[%clk 0:02:58]}  e5 {[%clk 0:03:00]} 6. d5 {[%clk 0:02:56]}  Nce7 {[%clk 0:03:00]} 7. Bd3 {[%clk 0:02:48]}  Bd7 {[%clk 0:03:00]} 8. O-O {[%clk 0:02:47]}  h6 {[%clk 0:03:00]} 9. Re1 {[%clk 0:02:46]}  f5 {[%clk 0:03:00]} 10. exf5 {[%clk 0:02:34]}  gxf5 {[%clk 0:03:00]} 11. Nh4 {[%clk 0:02:26]}  Nf6 {[%clk 0:02:49]} 12. c4 {[%clk 0:02:19]}  e4 {[%clk 0:02:47]} 13. Be2 {[%clk 0:02:19]}  c6 {[%clk 0:02:44]} 14. Bh5+ {[%clk 0:02:18]}  Kf8 {[%clk 0:02:41]} 15. dxc6 {[%clk 0:02:02]}  Bxc6 {[%clk 0:02:40]} 16. Ng6+ {[%clk 0:01:53]}  Nxg6 {[%clk 0:02:40]} 17. Bxg6 {[%clk 0:01:53]}  Qd7 {[%clk 0:02:38]} 18. Nb3 {[%clk 0:01:47]}  Ng4 {[%clk 0:02:27]} 19. Bf4 {[%clk 0:01:38]}  Ne5 {[%clk 0:02:22]} 20. Bxe5 {[%clk 0:01:22]}  Bxe5 {[%clk 0:02:20]} 21. Qh5 {[%clk 0:01:22]}  Rg8 {[%clk 0:01:59]} 22. Bxf5 {[%clk 0:01:19]}  Qg7 {[%clk 0:01:57]} 23. g3 {[%clk 0:01:13]}  Bxb2 {[%clk 0:01:46]} 24. Rad1 {[%clk 0:01:10]}  Bc3 {[%clk 0:01:45]} 25. Re3 {[%clk 0:01:05]}  Rd8 {[%clk 0:01:17]} 26. Bxe4 {[%clk 0:01:04]}  Bxe4 {[%clk 0:01:13]} 27. Rxe4 {[%clk 0:01:03]}  Qg6 {[%clk 0:01:00]} 28. Qd5 {[%clk 0:00:54]}  Rg7 {[%clk 0:00:50]} 29. Nd4 {[%clk 0:00:51]}  Bxd4 {[%clk 0:00:43]} 30. Rdxd4 {[%clk 0:00:50]}  Rf7 {[%clk 0:00:35]} 31. Rf4 {[%clk 0:00:50]}  Rd7 {[%clk 0:00:30]} 32. Rde4 {[%clk 0:00:50]}  Rxf4 {[%clk 0:00:26]} 33. Rxf4+ {[%clk 0:00:50]}  Kg7 {[%clk 0:00:24]} 34. h3 {[%clk 0:00:46]}  Re7 {[%clk 0:00:16]} 35. Rg4 {[%clk 0:00:46]} 1-0


[Site "https://www.chess.com"]

[Event "Titled Tuesday Blitz June 13 Late 2023"]
[White "Castella Garcia, Fausto"]
[Black "Maluco_do_Natal_00"]
[WhiteFideId "3501922"]
[WhiteElo "2245"]
[BlackElo "2087"]
[Result "1-0"]
[Round "5"]
[TimeControl "180+2"]
[Date "2023.06.13"]
[WhiteClock "0:01:44"]
[BlackClock "0:00:08"]
[Board "156"]

1. e4 {[%clk 0:03:00]}  c5 {[%clk 0:02:57]} 2. Nf3 {[%clk 0:03:00]}  Nc6 {[%clk 0:02:57]} 3. Bb5 {[%clk 0:02:59]}  e6 {[%clk 0:02:57]} 4. O-O {[%clk 0:02:57]}  Nge7 {[%clk 0:02:57]} 5. Nc3 {[%clk 0:02:56]}  a6 {[%clk 0:02:57]} 6. Bxc6 {[%clk 0:02:56]}  Nxc6 {[%clk 0:02:57]} 7. d4 {[%clk 0:02:56]}  cxd4 {[%clk 0:02:57]} 8. Nxd4 {[%clk 0:02:57]}  Be7 {[%clk 0:02:53]} 9. Nxc6 {[%clk 0:02:55]}  dxc6 {[%clk 0:02:47]} 10. e5 {[%clk 0:02:49]}  O-O {[%clk 0:02:38]} 11. Qg4 {[%clk 0:02:45]}  Qa5 {[%clk 0:02:26]} 12. Re1 {[%clk 0:02:39]}  Rd8 {[%clk 0:02:17]} 13. Bh6 {[%clk 0:02:32]}  Bf8 {[%clk 0:02:09]} 14. Bg5 {[%clk 0:02:09]}  Re8 {[%clk 0:01:39]} 15. Ne4 {[%clk 0:02:07]}  Kh8 {[%clk 0:01:21]} 16. Nf6 {[%clk 0:02:02]}  Rd8 {[%clk 0:00:47]} 17. Nxh7 {[%clk 0:01:53]}  Rd5 {[%clk 0:00:18]} 18. Nf6 {[%clk 0:01:45]}  g6 {[%clk 0:00:08]} 19. Qh4+ {[%clk 0:01:44]} 1-0


[Site "https://www.chess.com"]